fUSD/lending_fUSD_20241121
["ID","MTS","AMOUNT","RATE_DAILY","PERIOD"]
[342880869,1732192254408,-2524.35,0.00041095,18]
[342880871,1732192254420,-4120.23,0.00041095,18]
[342880873,1732192254430,-500.0,0.00041095,18]
[342880875,1732192254447,-500.0,0.00041095,18]
[342880877,1732192254459,-680.22,0.00041095,18]
[342880880,1732192254471,-500.0,0.00041095,18]
[342880882,1732192254484,-500.0,0.00041095,18]
[342880884,1732192254495,-931.0,0.00041095,18]
[342880886,1732192254505,-2185.09,0.00041095,18]
[342880888,1732192254515,-1169.44,0.00041095,18]
[342880890,1732192254526,-500.0,0.00041095,18]
[342880892,1732192254536,-500.0,0.00041095,18]
[342880894,1732192254546,-524.75,0.00041095,18]
[342880896,1732192254556,-674.8,0.00041095,18]
[342880898,1732192254565,-846.27,0.00041095,18]
[342880900,1732192254575,-573.68,0.00041095,18]
[342880902,1732192254586,-2653.83,0.00041095,18]
[342880904,1732192254596,-500.0,0.00041095,18]
[342880906,1732192254606,-1418.21,0.00041095,18]
[342880908,1732192254616,-631.65,0.00041095,18]
[342880910,1732192254626,-500.0,0.00041095,18]
[342880912,1732192254635,-1596.58,0.00041095,18]
[342880914,1732192254648,-500.0,0.00041095,18]
[342880916,1732192254659,-150.0,0.00041095,18]
[342880918,1732192254669,-500.0,0.00041095,18]
[342880920,1732192254681,-672.67,0.00041095,18]
[342880922,1732192254697,-6155.65,0.00041095,18]
[342880924,1732192254707,-500.0,0.00041095,18]
[342880926,1732192254716,-500.0,0.00041095,18]
[342880928,1732192254725,-3212.79,0.00041095,18]
[342880930,1732192254735,-500.0,0.00041095,18]
[342880932,1732192254745,-4061.88,0.00041095,18]
[342880934,1732192254757,-1831.41,0.00041095,18]
[342880936,1732192254767,-688.5,0.00041095,18]
[342880939,1732192254777,-875.72,0.00041095,18]
[342880941,1732192254786,-511.4,0.00041095,18]
[342880943,1732192254795,-1411.02,0.00041095,18]
[342880945,1732192254805,-579.51,0.00041095,18]
[342880947,1732192254814,-500.0,0.00041095,18]
[342880949,1732192254823,-500.0,0.00041095,18]
[342880951,1732192254833,-1535.11,0.00041095,18]
[342880953,1732192254842,-599.27,0.00041095,18]
[342880955,1732192254853,-500.0,0.00041095,18]
[342880957,1732192254862,-500.0,0.00041095,18]
[342880959,1732192254871,-500.0,0.00041095,18]
[342880961,1732192254880,-1183.27,0.00041095,18]
[342880963,1732192254890,-500.0,0.00041095,18]
[342880965,1732192254900,-500.0,0.00041095,18]
[342880967,1732192254909,-3411.85,0.00041095,18]
[342880969,1732192254919,-500.0,0.00041095,18]
[342880971,1732192254928,-1013.07,0.00041095,18]
[342880973,1732192254941,-500.0,0.00041095,18]
[342880975,1732192254951,-1141.04,0.00041095,18]
[342880977,1732192254960,-7897.71,0.00041095,18]
[342880979,1732192254970,-838.41,0.00041095,18]
[342880981,1732192254979,-1103.97,0.00041095,18]
[342880983,1732192254991,-511.67012483,0.00041095,18]
[342880985,1732192255000,-500.0,0.00041095,18]
[342880987,1732192255010,-500.0,0.00041095,18]
[342880989,1732192255019,-500.0,0.00041095,18]
[342880991,1732192255028,-822.73,0.00041095,18]
[342880993,1732192255038,-1090.43,0.00041095,18]
[342880995,1732192255047,-500.0,0.00041095,18]
[342880997,1732192255056,-788.55,0.00041095,18]
[342880999,1732192255066,-589.83296567,0.00041095,18]
[342881001,1732192255075,-523.71,0.00041095,18]
[342881003,1732192255084,-541.71,0.00041095,18]
[342881005,1732192255093,-1082.61,0.00041095,18]
[342881007,1732192255103,-500.0,0.00041095,18]
[342881009,1732192255112,-500.0,0.00041095,18]
[342881011,1732192255123,-500.0,0.00041095,18]
[342881013,1732192255132,-641.6,0.00041095,7]
[342881015,1732192255142,-500.0,0.00041095,18]
[342881017,1732192255152,-600.47,0.00041095,18]
[342881019,1732192255162,-979.9,0.00041095,18]
[342881021,1732192255171,-500.0,0.00041095,18]
[342881022,1732192255182,-1118.77,0.00041095,18]
[342881023,1732192255194,-2413.7,0.00041095,18]
[342881024,1732192255203,-683.28,0.00041095,18]
[342881025,1732192255212,-980.67,0.00041095,18]
[342881026,1732192255224,-899.8,0.00041095,18]
[342881027,1732192255233,-500.0,0.00041095,18]
[342881028,1732192255243,-500.0,0.00041095,18]
[342881030,1732192255253,-1699.42,0.00041095,18]
[342881032,1732192255262,-2893.92,0.00041095,18]
[342881033,1732192255271,-2471.84,0.00041095,18]
[342881035,1732192255280,-500.0,0.00041095,18]
[342881037,1732192255290,-500.0,0.00041095,18]
[342881039,1732192255299,-500.0,0.00041095,18]
[342881042,1732192255308,-500.0,0.00041095,18]
[342881044,1732192255318,-626.68,0.00041095,18]
[342881045,1732192255327,-500.0,0.00041095,18]
[342881047,1732192255337,-500.0,0.00041095,18]
[342881049,1732192255347,-816.8,0.00041095,18]
[342881051,1732192255356,-500.0,0.00041095,18]
[342881053,1732192255365,-2140.03,0.00041095,18]
[342881055,1732192255374,-2900.56,0.00041095,18]
[342881057,1732192255384,-798.04,0.00041095,18]
[342881059,1732192255394,-687.91,0.00041095,18]
[342881061,1732192255403,-500.0,0.00041095,18]
[342881063,1732192255412,-2132.81,0.00041095,18]
[342881065,1732192255421,-3178.1,0.00041095,18]
[342881067,1732192255431,-9260.05,0.00041095,18]
[342881070,1732192255444,-1671.38,0.00041095,18]
[342881072,1732192255453,-5193.53,0.00041095,18]
[342881073,1732192255462,-3559.88,0.00041095,18]
[342881076,1732192255472,-2407.75,0.00041095,18]
[342881078,1732192255483,-500.0,0.00041095,18]
[342881080,1732192255494,-1530.31,0.00041095,18]
[342881081,1732192255504,-500.0,0.00041095,18]
[342881092,1732192255615,-500.0,0.00041095,18]
[342881094,1732192255626,-346.98630299,0.00041095,18]
[342881096,1732192255636,-500.0,0.00041095,18]
[342881098,1732192255651,-500.0,0.00041095,18]
[342881100,1732192255663,-500.0,0.00041095,18]
[342881102,1732192255674,-2138.78,0.00041095,18]
[342881104,1732192255690,-963.24,0.00041095,18]
[342881106,1732192255702,-3507.91,0.00041095,120]
[342881108,1732192255713,-500.0,0.00041095,18]
[342881110,1732192255724,-3507.91,0.00041095,120]
[342881112,1732192255735,-3507.91,0.00041095,120]
[342881114,1732192255745,-1095.55,0.00041095,18]
[342881116,1732192255756,-500.0,0.00041095,18]
[342881118,1732192255767,-3507.91,0.00041095,120]
[342881120,1732192255780,-3507.91,0.00041095,120]
[342881122,1732192255790,-3130.55,0.00041095,18]
[342881124,1732192255805,-915.47,0.00041095,18]
[342881126,1732192255816,-3507.91,0.00041095,120]
[342881128,1732192255827,-3507.91,0.00041095,120]
[342881130,1732192255839,-3507.91,0.00041095,120]
[342881132,1732192255849,-3507.91,0.00041095,120]
[342881134,1732192255860,-500.0,0.00041095,18]
[342881136,1732192255871,-710.67,0.00041095,18]
[342881138,1732192255882,-3507.91,0.00041095,120]
[342881139,1732192255893,-3507.91,0.00041095,120]
[342881141,1732192255911,-3507.91,0.00041095,120]
[342881143,1732192255923,-3507.91,0.00041095,120]
[342881144,1732192255939,-3507.91,0.00041095,120]
[342881146,1732192255950,-82.72985199,0.00041095,120]
[342881150,1732192256024,-807.36149997,0.00041095,120]
[342881152,1732192256037,-2617.81864804,0.00041095,120]
[342881153,1732192256047,-500.0,0.00041095,18]
[342881155,1732192256059,-3507.91,0.00041095,120]
[342881157,1732192256070,-3507.91,0.00041095,120]
[342881158,1732192256081,-3507.91,0.00041095,120]
[342881159,1732192256092,-3507.91,0.00041095,120]
[342881161,1732192256104,-841.76,0.00041095,18]
[342881163,1732192256321,-3507.91,0.00041095,120]
[342881164,1732192256332,-3507.91,0.00041095,120]
[342881166,1732192256343,-3507.91,0.00041095,120]
[342881167,1732192256354,-3507.91,0.00041095,120]
[342881169,1732192256364,-3507.96652362,0.00041095,120]
[342881170,1732192256374,-7872.62,0.00041095,18]
[342881172,1732192256386,-500.0,0.00041095,18]
[342881174,1732192256398,-2585.05,0.00041095,18]
[342881175,1732192256409,-1929.5,0.00041095,18]
[342881177,1732192256420,-500.0,0.00041095,18]
[342881179,1732192256430,-4490.34,0.00041095,18]
[342881180,1732192256447,-500.0,0.00041095,18]
[342881182,1732192256459,-554.63,0.00041095,18]
[342881184,1732192256470,-908.51,0.00041095,18]
[342881185,1732192256480,-500.0,0.00041095,18]
[342881187,1732192256491,-500.0,0.00041095,18]
[342881188,1732192256501,-500.0,0.00041095,18]
[342881190,1732192256511,-586.23972102,0.00041095,18]
[342881192,1732192256526,-2641.30027898,0.00041095,18]
[342881193,1732192256536,-500.0,0.00041095,18]
[342881195,1732192256546,-1698.42,0.00041095,18]
[342881196,1732192256557,-505.85,0.00041095,18]
[342881198,1732192256568,-860.49,0.00041095,18]
[342881200,1732192256579,-1019.42,0.00041095,18]
[342881201,1732192256589,-500.0,0.00041095,18]
[342881203,1732192256600,-1339.51,0.00041095,18]
[342881205,1732192256611,-500.0,0.00041095,18]
[342881206,1732192256622,-3983.18,0.00041095,18]
[342881208,1732192256633,-500.0,0.00041095,18]
[342881210,1732192256644,-500.0,0.00041095,18]
[342881211,1732192256655,-500.0,0.00041095,18]
[342881213,1732192256664,-500.0,0.00041095,18]
[342881214,1732192256675,-500.0,0.00041095,18]
[342881216,1732192256691,-500.0,0.00041095,18]
[342881218,1732192256701,-500.0,0.00041095,18]
[342881219,1732192256713,-500.0,0.00041095,18]
[342881221,1732192256722,-500.0,0.00041095,18]
[342881223,1732192256733,-11455.22,0.00041095,18]
[342881224,1732192256743,-500.0,0.00041095,18]
[342881226,1732192256753,-500.0,0.00041095,18]
[342881227,1732192256764,-5781.39,0.00041095,18]
[342881229,1732192256775,-1003.84,0.00041095,18]
[342881231,1732192256785,-569.56876107,0.00041095,18]
[342881232,1732192256795,-801.28,0.00041095,18]
[342881234,1732192256806,-500.0,0.00041095,18]
[342881235,1732192256816,-1080.51,0.00041095,18]
[342881237,1732192256827,-1658.59,0.00041095,18]
[342881239,1732192256837,-1225.7,0.00041095,18]
[342881240,1732192256847,-500.0,0.00041095,18]
[342881242,1732192256857,-500.0,0.00041095,18]
[342881243,1732192256867,-1228.05,0.00041095,18]
[342881245,1732192256877,-4397.3,0.00041095,18]
[342881246,1732192256887,-4270.48,0.00041095,18]
[342881248,1732192256897,-1198.65,0.00041095,18]
[342881250,1732192256907,-500.0,0.00041095,18]
[342881251,1732192256916,-606.4,0.00041095,18]
[342881253,1732192256925,-1316.47,0.00041095,18]
[342881255,1732192256937,-857.57,0.00041095,18]
[342881256,1732192256947,-195.7684567,0.00041095,18]
[342881258,1732192256956,-1740.47,0.00041095,18]
[342881259,1732192256966,-540.88,0.00041095,18]
[342881261,1732192256976,-295.33184452,0.00041095,18]
[342881262,1732192256986,-1776.03,0.00041095,18]
[342881264,1732192256996,-800.84,0.00041095,18]
[342881266,1732192257006,-500.0,0.00041095,18]
[342881267,1732192257015,-500.0,0.00041095,18]
[342881269,1732192257024,-500.0,0.00041095,18]
[342881271,1732192257034,-500.0,0.00041095,18]
[342881272,1732192257044,-9691.49,0.00041095,18]
[342881274,1732192257053,-1547.82,0.00041095,18]
[342881275,1732192257062,-615.77,0.00041095,18]
[342881277,1732192257072,-2001.02,0.00041095,18]
[342881279,1732192257082,-766.25,0.00041095,18]
[342881280,1732192257092,-35812.57,0.00041095,18]
[342881282,1732192257101,-519.39,0.00041095,18]
[342881283,1732192257110,-5297.18065873,0.00041095,18]
[342881285,1732192257123,-2990.45934127,0.00041095,18]
[342881286,1732192257133,-1093.75,0.00041095,18]
[342881287,1732192257143,-500.0,0.00041095,18]
[342881288,1732192257153,-898.12,0.00041095,18]
[342881289,1732192257162,-500.0,0.00041095,18]
[342881290,1732192257171,-500.0,0.00041095,18]
[342881291,1732192257180,-500.0,0.00041095,2]
[342881292,1732192257192,-712.78,0.00041095,18]
[342881293,1732192257201,-537.32,0.00041095,18]
[342881294,1732192257210,-500.0,0.00041095,18]
[342881295,1732192257220,-500.0,0.00041095,18]
[342881296,1732192257229,-500.0,0.00041095,18]
[342881297,1732192257239,-4082.14,0.00041095,18]
[342881299,1732192257248,-530.46549144,0.00041095,18]
[342881300,1732192257257,-1432.21,0.00041095,18]
[342881302,1732192257266,-500.0,0.00041095,18]
[342881304,1732192257275,-500.0,0.00041095,18]
[342881306,1732192257285,-500.0,0.00041095,18]
[342881308,1732192257295,-4333.07,0.00041095,18]
[342881310,1732192257306,-950.86,0.00041095,18]
[342881312,1732192257316,-2176.16,0.00041095,18]
[342881314,1732192257326,-500.0,0.00041095,18]
[342881316,1732192257336,-500.0,0.00041095,18]
[342881318,1732192257345,-2237.71,0.00041095,18]
[342881320,1732192257355,-500.0,0.00041095,18]
[342881322,1732192257364,-978.14,0.00041095,18]
[342881324,1732192257374,-500.0,0.00041095,18]
[342881326,1732192257382,-1178.03,0.00041095,18]
[342881328,1732192257391,-151.44135713,0.00041095,18]
[342881330,1732192257401,-2554.06,0.00041095,18]
[342881332,1732192257410,-500.0,0.00041095,18]
[342881334,1732192257420,-612.63,0.00041095,18]
[342881336,1732192257429,-500.0,0.00041095,18]
[342881338,1732192257441,-799.38,0.00041095,18]
[342881340,1732192257451,-500.0,0.00041095,18]
[342881342,1732192257459,-500.0,0.00041095,18]
[342881344,1732192257469,-480.0,0.000411,2]
[342881346,1732192257478,-3490.0,0.00041247,2]
[342881348,1732192257489,-13657.0,0.00041247,2]
[342881350,1732192257498,-1162.0,0.00041247,2]
[342881352,1732192257507,-5940.0,0.00041247,2]
[342881354,1732192257516,-150.0,0.00041247,2]
[342881356,1732192257526,-151.0,0.00041247,2]
[342881357,1732192257539,-1093.0,0.00041247,2]
[342881358,1732192257548,-4658.0,0.000413,3]
[342881359,1732192257557,-5740.8,0.00041315,120]
[342881360,1732192257566,-362.63,0.00041367,30]
[342881361,1732192257575,-500.0,0.00041368,18]
[342881362,1732192257584,-500.0,0.00041368,18]
[342881363,1732192257592,-500.0,0.00041368,18]
[342881364,1732192257601,-212.49,0.00041368,18]
[342881365,1732192257610,-500.0,0.00041369,18]
[342881366,1732192257619,-500.0,0.00041369,18]
[342881367,1732192257628,-500.0,0.00041369,18]
[342881368,1732192257638,-401.08344878,0.00041369,18]
[342881369,1732192257651,-500.0,0.00041369,18]
[342881370,1732192257661,-500.0,0.00041369,18]
[342881371,1732192257671,-500.0,0.00041369,18]
[342881372,1732192257680,-587.16,0.00041369,18]
[342881373,1732192257696,-500.0,0.00041369,18]
[342881374,1732192257706,-500.0,0.00041369,18]
[342881375,1732192257715,-500.0,0.00041369,7]
[342881376,1732192257725,-500.0,0.00041369,18]
[342881377,1732192257734,-500.0,0.00041369,18]
[342881378,1732192257744,-500.0,0.00041369,18]
[342881379,1732192257753,-500.0,0.00041369,18]
[342881380,1732192257763,-500.0,0.00041369,18]
[342881381,1732192257773,-500.0,0.00041369,18]
[342881382,1732192257782,-755.73,0.00041369,18]
[342881383,1732192257792,-500.0,0.00041369,18]
[342881385,1732192257802,-500.0,0.00041369,18]
[342881386,1732192257811,-643.88,0.00041369,18]
[342881388,1732192257821,-500.0,0.00041369,18]
[342881389,1732192257830,-500.0,0.00041369,18]
[342881390,1732192257839,-781.82,0.00041369,18]
[342881391,1732192257848,-500.0,0.00041369,7]
[342881392,1732192257858,-742.65,0.00041369,18]
[342881393,1732192257867,-1352.28,0.00041369,18]
[342881394,1732192257876,-552.08844686,0.00041369,18]
[342881395,1732192257886,-786.62,0.00041369,18]
[342881396,1732192257896,-500.0,0.00041369,18]
[342881397,1732192257906,-647.94,0.00041369,18]
[342881398,1732192257915,-381.69335992,0.00041369,18]
[342881399,1732192257925,-666.43,0.00041369,18]
[342881400,1732192257939,-1042.67,0.00041369,18]
[342881401,1732192257948,-500.0,0.00041369,18]
[342881402,1732192257958,-784.6,0.00041369,18]
[342881403,1732192257967,-539.82,0.00041369,18]
[342881404,1732192257977,-669.51,0.00041369,18]
[342881407,1732192257986,-500.0,0.00041369,18]
[342881408,1732192257996,-500.0,0.00041369,18]
[342881410,1732192258006,-760.33,0.00041369,18]
[342881412,1732192258015,-506.15,0.00041369,18]
[342881413,1732192258025,-510.01,0.00041369,18]
[342881414,1732192258034,-500.0,0.00041369,18]
[342881415,1732192258044,-500.0,0.00041369,18]
[342881416,1732192258054,-500.0,0.00041369,18]
[342881417,1732192258064,-500.0,0.00041369,18]
[342881418,1732192258073,-509.19,0.00041369,18]
[342881419,1732192258082,-541.42,0.00041369,18]
[342881420,1732192258092,-718.07,0.00041369,18]
[342881421,1732192258101,-500.0,0.00041369,18]
[342881423,1732192258110,-500.0,0.00041369,18]
[342881424,1732192258120,-500.0,0.00041369,18]
[342881425,1732192258129,-630.41,0.00041369,18]
[342881426,1732192258139,-500.0,0.00041369,18]
[342881427,1732192258148,-500.0,0.00041369,18]
[342881428,1732192258158,-500.0,0.00041369,18]
[342881429,1732192258167,-646.97723944,0.00041369,18]
[342881430,1732192258176,-500.0,0.00041369,18]
[342881431,1732192258191,-500.0,0.00041369,18]
[342881432,1732192258200,-500.0,0.00041369,18]
[342881433,1732192258209,-583.93,0.00041369,18]
[342881434,1732192258218,-500.0,0.00041369,18]
[342881435,1732192258228,-455.15772944,0.00041369,18]
[342881436,1732192258237,-547.84,0.00041369,18]
[342881437,1732192258246,-500.0,0.00041369,18]
[342881438,1732192258255,-500.0,0.00041369,18]
[342881439,1732192258264,-500.0,0.00041369,18]
[342881440,1732192258274,-500.0,0.00041369,18]
[342881441,1732192258283,-500.0,0.00041369,18]
[342881442,1732192258292,-550.44,0.00041369,18]
[342881443,1732192258302,-500.0,0.00041369,18]
[342881444,1732192258312,-684.84,0.00041369,18]
[342881445,1732192258321,-828.37,0.00041369,18]
[342881446,1732192258330,-1636.68,0.00041369,18]
[342881447,1732192258340,-500.0,0.00041369,18]
[342881448,1732192258349,-500.0,0.00041369,18]
[342881449,1732192258359,-500.0,0.00041369,18]
[342881450,1732192258368,-500.0,0.00041369,18]
[342881451,1732192258377,-500.0,0.00041369,18]
[342881453,1732192258387,-500.0,0.00041369,18]
[342881455,1732192258396,-500.0,0.00041369,18]
[342881457,1732192258405,-529.66,0.00041369,18]
[342881459,1732192258415,-500.0,0.00041369,18]
[342881460,1732192258424,-700.0,0.00041369,18]
[342881461,1732192258435,-500.0,0.00041369,18]
[342881462,1732192258445,-500.0,0.00041369,18]
[342881463,1732192258454,-500.0,0.00041369,18]
[342881464,1732192258463,-500.0,0.00041369,18]
[342881465,1732192258472,-1347.26,0.00041369,18]
[342881466,1732192258481,-500.0,0.00041369,18]
[342881467,1732192258491,-500.0,0.00041369,18]
[342881468,1732192258500,-1999.94,0.00041369,18]
[342881469,1732192258509,-500.0,0.00041369,18]
[342881470,1732192258519,-500.0,0.00041369,18]
[342881471,1732192258528,-500.0,0.00041369,18]
[342881472,1732192258537,-500.0,0.00041369,18]
[342881473,1732192258546,-500.0,0.00041369,18]
[342881474,1732192258555,-500.0,0.00041369,18]
[342881475,1732192258564,-500.0,0.00041369,18]
[342881476,1732192258573,-500.0,0.00041369,18]
[342881477,1732192258582,-500.0,0.00041369,18]
[342881478,1732192258591,-622.23,0.00041369,18]
[342881479,1732192258601,-500.0,0.00041369,18]
[342881480,1732192258610,-500.0,0.00041369,18]
[342881481,1732192258620,-1259.91,0.00041369,18]
[342881482,1732192258629,-500.0,0.00041369,18]
[342881483,1732192258638,-500.0,0.00041369,18]
[342881484,1732192258648,-546.24,0.00041369,18]
[342881485,1732192258658,-500.0,0.00041369,18]
[342881486,1732192258667,-500.0,0.00041369,18]
[342881487,1732192258676,-500.0,0.00041369,18]
[342881488,1732192258691,-769.31,0.00041369,18]
[342881489,1732192258701,-500.0,0.00041369,18]
[342881490,1732192258710,-1684.03,0.00041369,18]
[342881491,1732192258720,-585.82,0.00041369,18]
[342881492,1732192258729,-343.33968003,0.00041369,18]
[342881493,1732192258738,-808.5,0.00041369,18]
[342881494,1732192258748,-500.0,0.00041369,18]
[342881495,1732192258757,-573.23,0.00041369,18]
[342881496,1732192258768,-666.7,0.00041369,18]
[342881497,1732192258777,-500.0,0.00041369,18]
[342881498,1732192258786,-500.0,0.00041369,18]
[342881499,1732192258795,-737.24,0.00041369,18]
[342881500,1732192258804,-516.88,0.00041369,18]
[342881501,1732192258812,-500.0,0.00041369,18]
[342881502,1732192258821,-500.0,0.00041369,18]
[342881503,1732192258830,-657.17,0.00041369,18]
[342881504,1732192258839,-500.0,0.00041369,18]
[342881505,1732192258848,-500.0,0.00041369,18]
[342881506,1732192258857,-500.0,0.00041369,18]
[342881507,1732192258866,-500.0,0.00041369,18]
[342881508,1732192258875,-630.58,0.00041369,18]
[342881509,1732192258884,-500.0,0.00041369,18]
[342881511,1732192258893,-3041.34,0.00041369,18]
[342881512,1732192258902,-500.0,0.00041369,18]
[342881514,1732192258912,-950.71,0.00041369,18]
[342881516,1732192258922,-500.0,0.00041369,18]
[342881518,1732192258931,-537.52,0.00041369,18]
[342881520,1732192258945,-964.62,0.00041369,18]
[342881522,1732192258954,-500.0,0.00041369,18]
[342881525,1732192258964,-500.0,0.00041369,18]
[342881527,1732192258973,-500.0,0.00041369,18]
[342881529,1732192258982,-2738.58,0.00041369,18]
[342881530,1732192258992,-838.26,0.00041369,18]
[342881532,1732192259001,-591.04,0.00041369,18]
[342881534,1732192259010,-500.0,0.00041369,18]
[342881535,1732192259020,-3781.33,0.00041369,18]
[342881536,1732192259029,-719.8,0.00041369,18]
[342881537,1732192259039,-500.0,0.00041369,18]
[342881539,1732192259049,-1473.17,0.00041369,18]
[342881541,1732192259058,-500.0,0.00041369,18]
[342881543,1732192259068,-533.13,0.00041369,18]
[342881544,1732192259077,-500.0,0.00041369,18]
[342881545,1732192259087,-500.0,0.00041369,18]
[342881546,1732192259097,-500.0,0.00041369,18]
[342881547,1732192259106,-500.0,0.00041369,18]
[342881548,1732192259115,-500.0,0.00041369,18]
[342881549,1732192259125,-916.26,0.00041369,18]
[342881550,1732192259135,-500.0,0.00041369,18]
[342881551,1732192259144,-500.0,0.00041369,18]
[342881552,1732192259154,-787.47,0.00041369,18]
[342881553,1732192259163,-500.0,0.00041369,18]
[342881554,1732192259173,-1306.06,0.00041369,18]
[342881555,1732192259185,-512.81,0.00041369,18]
[342881556,1732192259194,-500.0,0.00041369,18]
[342881557,1732192259203,-500.0,0.00041369,18]
[342881558,1732192259213,-500.0,0.00041369,18]
[342881559,1732192259223,-536.22,0.00041369,18]
[342881560,1732192259232,-1000.0,0.00041369,18]
[342881561,1732192259242,-500.0,0.00041369,18]
[342881562,1732192259251,-500.0,0.00041369,18]
[342881563,1732192259261,-500.0,0.00041369,18]
[342881564,1732192259271,-500.0,0.00041369,18]
[342881565,1732192259281,-500.0,0.00041369,18]
[342881566,1732192259291,-500.0,0.00041369,18]
[342881567,1732192259300,-500.0,0.00041369,18]
[342881568,1732192259309,-1349.64,0.00041369,18]
[342881569,1732192259318,-958.68,0.00041369,18]
[342881570,1732192259327,-500.0,0.00041369,18]
[342881571,1732192259336,-1072.24,0.00041369,18]
[342881573,1732192259345,-500.0,0.00041369,18]
[342881575,1732192259355,-753.0,0.00041369,18]
[342881577,1732192259365,-500.0,0.00041369,18]
[342881579,1732192259374,-500.0,0.00041369,18]
[342881581,1732192259383,-103.19999281,0.00041369,18]
[342881584,1732192259408,-480.05000719,0.00041369,18]
[342881585,1732192259417,-500.0,0.00041369,18]
[342881586,1732192259426,-500.0,0.00041369,18]
[342881587,1732192259436,-500.0,0.00041369,18]
[342881588,1732192259446,-295.45856261,0.00041369,18]
[342881589,1732192259458,-1075.25143739,0.00041369,18]
[342881590,1732192259468,-803.05,0.00041369,18]
[342881591,1732192259478,-1317.94,0.00041369,18]
[342881592,1732192259487,-500.0,0.00041369,18]
[342881593,1732192259497,-524.79113518,0.00041369,18]
[342881594,1732192259506,-1066.5,0.00041369,18]
[342881595,1732192259516,-1745.35,0.00041369,18]
[342881596,1732192259526,-500.0,0.00041369,18]
[342881597,1732192259536,-500.0,0.00041369,18]
[342881598,1732192259546,-798.02,0.00041369,18]
[342881599,1732192259556,-989.21,0.00041369,18]
[342881600,1732192259566,-686.38,0.00041369,18]
[342881601,1732192259576,-307.75745149,0.00041369,18]
[342881602,1732192259597,-192.24254851,0.00041369,18]
[342881603,1732192259607,-500.0,0.00041369,18]
[342881604,1732192259616,-500.0,0.00041369,18]
[342881605,1732192259626,-500.0,0.00041369,18]
[342881606,1732192259635,-500.0,0.00041369,18]
[342881607,1732192259646,-500.0,0.00041369,18]
[342881608,1732192259660,-642.15,0.00041369,18]
[342881609,1732192259670,-500.0,0.00041369,18]
[342881610,1732192259679,-819.59,0.00041369,120]
[342881611,1732192259691,-1076.0,0.00041369,18]
[342881612,1732192259704,-1276.77,0.00041369,18]
[342881613,1732192259714,-500.0,0.00041369,18]
[342881614,1732192259726,-500.0,0.00041369,18]
[342881615,1732192259736,-722.65,0.00041369,18]
[342881616,1732192259745,-500.0,0.00041369,18]
[342881617,1732192259755,-500.0,0.00041369,18]
[342881618,1732192259765,-500.0,0.00041369,18]
[342881619,1732192259775,-2235.08,0.00041369,18]
[342881620,1732192259784,-500.0,0.00041369,18]
[342881621,1732192259794,-500.0,0.00041369,18]
[342881622,1732192259804,-1135.61,0.00041369,18]
[342881623,1732192259814,-500.0,0.00041369,18]